[Event "Titled Tuesday Blitz April 25 Early 2023"]
[White "Manukyan, Sargis A."]
[Black "Bacrot, Etienne"]
[WhiteFideId "13303970"]
[BlackFideId "605506"]
[WhiteElo "2187"]
[BlackElo "2663"]
[Result "0-1"]
[Round "07"]
[TimeControl "180+2"]
[Date "2023.04.25"]
[WhiteClock "0:00:04"]
[BlackClock "0:00:07"]

1. d4 {[%clk 0:03:00]}  d5 {[%clk 0:03:00]} 2. c4 {[%clk 0:03:01]}  c6 {[%clk 0:03:00]} 3. Nc3 {[%clk 0:03:01]}  Nf6 {[%clk 0:03:00]} 4. e3 {[%clk 0:03:01]}  a6 {[%clk 0:03:00]} 5. Nf3 {[%clk 0:03:01]}  Bf5 {[%clk 0:02:59]} 6. Bd3 {[%clk 0:03:00]}  Bxd3 {[%clk 0:02:59]} 7. Qxd3 {[%clk 0:03:01]}  e6 {[%clk 0:02:59]} 8. O-O {[%clk 0:03:02]}  Nbd7 {[%clk 0:03:00]} 9. e4 {[%clk 0:03:02]}  dxe4 {[%clk 0:02:54]} 10. Nxe4 {[%clk 0:03:03]}  Be7 {[%clk 0:02:54]} 11. b3 {[%clk 0:03:02]}  O-O {[%clk 0:02:51]} 12. Nxf6+ {[%clk 0:03:02]}  Bxf6 {[%clk 0:02:51]} 13. Rd1 {[%clk 0:03:01]}  Qc7 {[%clk 0:02:47]} 14. Bb2 {[%clk 0:03:01]}  Rad8 {[%clk 0:02:46]} 15. Qe2 {[%clk 0:02:55]}  Rfe8 {[%clk 0:02:47]} 16. g3 {[%clk 0:02:55]}  b5 {[%clk 0:02:38]} 17. Kg2 {[%clk 0:02:50]}  Nb6 {[%clk 0:02:36]} 18. a4 {[%clk 0:02:48]}  bxa4 {[%clk 0:02:19]} 19. bxa4 {[%clk 0:02:47]}  c5 {[%clk 0:02:17]} 20. a5 {[%clk 0:02:25]}  Nc8 {[%clk 0:02:14]} 21. dxc5 {[%clk 0:02:21]}  Bxb2 {[%clk 0:01:48]} 22. Qxb2 {[%clk 0:02:21]}  Qxc5 {[%clk 0:01:48]} 23. Qb7 {[%clk 0:02:01]}  Rxd1 {[%clk 0:01:20]} 24. Rxd1 {[%clk 0:01:59]}  Qxa5 {[%clk 0:01:21]} 25. Rd7 {[%clk 0:01:41]}  Rf8 {[%clk 0:01:21]} 26. c5 {[%clk 0:01:12]}  Qxc5 {[%clk 0:01:06]} 27. Rc7 {[%clk 0:01:12]}  Nd6 {[%clk 0:01:06]} 28. Qc6 {[%clk 0:00:58]}  Qa3 {[%clk 0:00:33]} 29. Ra7 {[%clk 0:00:56]}  a5 {[%clk 0:00:34]} 30. Ne5 {[%clk 0:00:47]}  Qb4 {[%clk 0:00:29]} 31. Nd7 {[%clk 0:00:43]}  Re8 {[%clk 0:00:09]} 32. Ra8 {[%clk 0:00:43]}  h6 {[%clk 0:00:09]} 33. Rxe8+ {[%clk 0:00:29]}  Nxe8 {[%clk 0:00:10]} 34. Qc8 {[%clk 0:00:21]}  Qe7 {[%clk 0:00:08]} 35. Ne5 {[%clk 0:00:18]}  a4 {[%clk 0:00:07]} 36. Qa8 {[%clk 0:00:18]}  a3 {[%clk 0:00:07]} 37. Nc6 {[%clk 0:00:17]}  Qf8 {[%clk 0:00:07]} 38. Nd4 {[%clk 0:00:14]}  g6 {[%clk 0:00:07]} 39. Nb5 {[%clk 0:00:15]}  Kg7 {[%clk 0:00:06]} 40. Nxa3 {[%clk 0:00:14]}  Nc7 {[%clk 0:00:05]} 41. Qf3 {[%clk 0:00:14]}  Nd5 {[%clk 0:00:06]} 42. Nc4 {[%clk 0:00:14]}  Qd8 {[%clk 0:00:06]} 43. Ne5 {[%clk 0:00:15]}  Qf6 {[%clk 0:00:06]} 44. Qe2 {[%clk 0:00:14]}  h5 {[%clk 0:00:06]} 45. h4 {[%clk 0:00:14]}  Qf5 {[%clk 0:00:07]} 46. Qe1 {[%clk 0:00:14]}  Nf6 {[%clk 0:00:07]} 47. Nf3 {[%clk 0:00:14]}  Qd5 {[%clk 0:00:07]} 48. Qa1 {[%clk 0:00:14]}  Qe4 {[%clk 0:00:06]} 49. Qc3 {[%clk 0:00:14]}  Qd5 {[%clk 0:00:06]} 50. Qb2 {[%clk 0:00:14]}  Qc6 {[%clk 0:00:05]} 51. Qd4 {[%clk 0:00:14]}  Qe4 {[%clk 0:00:05]} 52. Qc3 {[%clk 0:00:15]}  Qf5 {[%clk 0:00:05]} 53. Ng5 {[%clk 0:00:14]}  Kf8 {[%clk 0:00:03]} 54. Qc8+ {[%clk 0:00:14]}  Ne8 {[%clk 0:00:03]} 55. Qc3 {[%clk 0:00:14]}  Qd5+ {[%clk 0:00:02]} 56. f3 {[%clk 0:00:14]}  e5 {[%clk 0:00:03]} 57. Qa3+ {[%clk 0:00:14]}  Qd6 {[%clk 0:00:03]} 58. Qc3 {[%clk 0:00:14]}  Qe7 {[%clk 0:00:03]} 59. Qb3 {[%clk 0:00:15]}  Kg7 {[%clk 0:00:02]} 60. Qc3 {[%clk 0:00:15]}  Nd6 {[%clk 0:00:03]} 61. f4 {[%clk 0:00:15]}  f6 {[%clk 0:00:03]} 62. fxe5 {[%clk 0:00:11]}  fxe5 {[%clk 0:00:04]} 63. Nf3 {[%clk 0:00:11]}  Nf7 {[%clk 0:00:04]} 64. Qb2 {[%clk 0:00:11]}  Qf6 {[%clk 0:00:04]} 65. Ng5 {[%clk 0:00:11]}  Qc6+ {[%clk 0:00:04]} 66. Nf3 {[%clk 0:00:10]}  Qd5 {[%clk 0:00:04]} 67. Kf2 {[%clk 0:00:10]}  Kf6 {[%clk 0:00:04]} 68. Qb6+ {[%clk 0:00:09]}  Qe6 {[%clk 0:00:05]} 69. Qb2 {[%clk 0:00:10]}  Qf5 {[%clk 0:00:05]} 70. Qc3 {[%clk 0:00:10]}  Kg7 {[%clk 0:00:05]} 71. Kg2 {[%clk 0:00:10]}  Kh6 {[%clk 0:00:05]} 72. Qe3+ {[%clk 0:00:10]}  Kh7 {[%clk 0:00:05]} 73. Qa7 {[%clk 0:00:11]}  Kg7 {[%clk 0:00:05]} 74. Ng5 {[%clk 0:00:09]}  Qf6 {[%clk 0:00:04]} 75. Qc7 {[%clk 0:00:08]}  e4 {[%clk 0:00:03]} 76. Nxe4 {[%clk 0:00:07]}  Qb2+ {[%clk 0:00:04]} 77. Kf3 {[%clk 0:00:07]}  Qb3+ {[%clk 0:00:04]} 78. Kg2 {[%clk 0:00:06]}  Qa2+ {[%clk 0:00:04]} 79. Kh3 {[%clk 0:00:06]}  Qe6+ {[%clk 0:00:04]} 80. Kh2 {[%clk 0:00:06]}  Qxe4 {[%clk 0:00:04]} 81. Qc3+ {[%clk 0:00:06]}  Qe5 {[%clk 0:00:05]} 82. Qf3 {[%clk 0:00:06]}  Qf6 {[%clk 0:00:05]} 83. Qb7 {[%clk 0:00:06]}  Qf5 {[%clk 0:00:05]} 84. Qb2+ {[%clk 0:00:06]}  Qe5 {[%clk 0:00:05]} 85. Qb7 {[%clk 0:00:07]}  Qe6 {[%clk 0:00:06]} 86. Qb2+ {[%clk 0:00:07]}  Kh7 {[%clk 0:00:06]} 87. Qb7 {[%clk 0:00:07]}  Qf6 {[%clk 0:00:07]} 88. Qg2 {[%clk 0:00:07]}  Nh6 {[%clk 0:00:07]} 89. Qb7+ {[%clk 0:00:08]}  Qg7 {[%clk 0:00:07]} 90. Qe4 {[%clk 0:00:08]}  Ng4+ {[%clk 0:00:07]} 91. Kg1 {[%clk 0:00:05]}  Qa7+ {[%clk 0:00:07]} 92. Kf1 {[%clk 0:00:04]}  Qf2# {[%clk 0:00:07]} 0-1


[Site "https://www.chess.com"]

[Event "Titled Tuesday Blitz April 25 Early 2023"]
[White "Kravtsiv, Martyn"]
[Black "Hua, Lefong"]
[WhiteFideId "14113147"]
[BlackFideId "2602253"]
[WhiteElo "2695"]
[BlackElo "2651"]
[Result "0-1"]
[Round "07"]
[TimeControl "180+2"]
[Date "2023.04.25"]
[WhiteClock "0:01:32"]
[BlackClock "0:00:59"]

1. e4 {[%clk 0:02:59]}  c5 {[%clk 0:02:59]} 2. Nf3 {[%clk 0:02:59]}  g6 {[%clk 0:02:59]} 3. h4 {[%clk 0:02:57]}  Nf6 {[%clk 0:02:47]} 4. e5 {[%clk 0:02:53]}  Ng4 {[%clk 0:02:48]} 5. Bc4 {[%clk 0:02:53]}  d5 {[%clk 0:02:43]} 6. exd6 {[%clk 0:02:52]}  Qxd6 {[%clk 0:02:41]} 7. Nc3 {[%clk 0:02:52]}  Bg7 {[%clk 0:02:30]} 8. d3 {[%clk 0:02:51]}  O-O {[%clk 0:02:22]} 9. Ne4 {[%clk 0:02:47]}  Qc7 {[%clk 0:02:17]} 10. h5 {[%clk 0:02:47]}  Nc6 {[%clk 0:02:10]} 11. hxg6 {[%clk 0:02:47]}  hxg6 {[%clk 0:02:10]} 12. Qe2 {[%clk 0:02:45]}  Nge5 {[%clk 0:02:00]} 13. Nxe5 {[%clk 0:02:32]}  Nxe5 {[%clk 0:02:01]} 14. Bf4 {[%clk 0:02:32]}  Qa5+ {[%clk 0:01:53]} 15. Bd2 {[%clk 0:02:30]}  Qc7 {[%clk 0:01:46]} 16. Bb3 {[%clk 0:02:30]}  b5 {[%clk 0:01:40]} 17. O-O-O {[%clk 0:02:16]}  c4 {[%clk 0:01:36]} 18. dxc4 {[%clk 0:02:16]}  bxc4 {[%clk 0:01:25]} 19. Ba4 {[%clk 0:02:16]}  Nd3+ {[%clk 0:01:19]} 20. Kb1 {[%clk 0:02:10]}  Nxb2 {[%clk 0:01:17]} 21. Bb5 {[%clk 0:01:50]}  Rb8 {[%clk 0:01:11]} 22. a4 {[%clk 0:01:32]}  Nxa4 {[%clk 0:00:59]} 0-1


[Site "https://www.chess.com"]

[Event "Titled Tuesday Blitz April 25 Early 2023"]
[White "Janik, Igor"]
[Black "Kucuksari, Kaan"]
[WhiteFideId "1159259"]
[BlackFideId "6380166"]
[WhiteElo "2484"]
[BlackElo "2364"]
[Result "1-0"]
[Round "07"]
[TimeControl "180+2"]
[Date "2023.04.25"]
[WhiteClock "0:01:41"]
[BlackClock "0:00:05"]

1. Nf3 {[%clk 0:02:56]}  Nf6 {[%clk 0:02:57]} 2. b3 {[%clk 0:02:56]}  g6 {[%clk 0:02:57]} 3. Bb2 {[%clk 0:02:56]}  Bg7 {[%clk 0:02:58]} 4. c4 {[%clk 0:02:57]}  O-O {[%clk 0:02:58]} 5. g3 {[%clk 0:02:57]}  d6 {[%clk 0:02:58]} 6. Bg2 {[%clk 0:02:58]}  e5 {[%clk 0:02:57]} 7. O-O {[%clk 0:02:59]}  Nbd7 {[%clk 0:02:48]} 8. d4 {[%clk 0:02:56]}  e4 {[%clk 0:02:39]} 9. Ne1 {[%clk 0:02:53]}  c6 {[%clk 0:02:34]} 10. Ba3 {[%clk 0:02:48]}  Qc7 {[%clk 0:02:22]} 11. Nc3 {[%clk 0:02:46]}  Re8 {[%clk 0:02:21]} 12. Nc2 {[%clk 0:02:43]}  d5 {[%clk 0:02:18]} 13. Ne3 {[%clk 0:02:43]}  Nb6 {[%clk 0:02:17]} 14. Rc1 {[%clk 0:02:37]}  Qd8 {[%clk 0:02:10]} 15. cxd5 {[%clk 0:02:30]}  Nfxd5 {[%clk 0:01:59]} 16. Nexd5 {[%clk 0:02:22]}  Nxd5 {[%clk 0:01:50]} 17. Nxe4 {[%clk 0:02:20]}  Qa5 {[%clk 0:01:44]} 18. Nd6 {[%clk 0:02:18]}  Qxa3 {[%clk 0:00:56]} 19. Nxe8 {[%clk 0:02:14]}  Nb6 {[%clk 0:00:54]} 20. Nxg7 {[%clk 0:02:12]}  Kxg7 {[%clk 0:00:54]} 21. Qd2 {[%clk 0:02:09]}  Be6 {[%clk 0:00:53]} 22. e4 {[%clk 0:02:07]}  Rd8 {[%clk 0:00:53]} 23. Rfd1 {[%clk 0:02:07]}  Bg4 {[%clk 0:00:50]} 24. f3 {[%clk 0:02:05]}  Be6 {[%clk 0:00:51]} 25. Rc2 {[%clk 0:01:58]}  Qe7 {[%clk 0:00:43]} 26. Qc3 {[%clk 0:01:57]}  Kg8 {[%clk 0:00:41]} 27. Rcd2 {[%clk 0:01:56]}  h5 {[%clk 0:00:40]} 28. Qc5 {[%clk 0:01:54]}  Qf6 {[%clk 0:00:34]} 29. h4 {[%clk 0:01:54]}  Nd7 {[%clk 0:00:31]} 30. Qg5 {[%clk 0:01:55]}  Kg7 {[%clk 0:00:22]} 31. Qxf6+ {[%clk 0:01:54]}  Nxf6 {[%clk 0:00:23]} 32. Kf2 {[%clk 0:01:54]}  a5 {[%clk 0:00:22]} 33. Ke3 {[%clk 0:01:54]}  a4 {[%clk 0:00:21]} 34. bxa4 {[%clk 0:01:54]}  Ra8 {[%clk 0:00:22]} 35. Rb1 {[%clk 0:01:54]}  Rxa4 {[%clk 0:00:20]} 36. Rxb7 {[%clk 0:01:55]}  Bxa2 {[%clk 0:00:19]} 37. Bf1 {[%clk 0:01:52]}  Ra3+ {[%clk 0:00:19]} 38. Rd3 {[%clk 0:01:49]}  Ra5 {[%clk 0:00:16]} 39. Rc3 {[%clk 0:01:50]}  Be6 {[%clk 0:00:15]} 40. Rxc6 {[%clk 0:01:44]}  Ra3+ {[%clk 0:00:15]} 41. Kf2 {[%clk 0:01:43]}  Bd7 {[%clk 0:00:07]} 42. Rxf6 {[%clk 0:01:40]}  Ra2+ {[%clk 0:00:05]} 43. Ke3 {[%clk 0:01:40]}  Ra3+ {[%clk 0:00:05]} 44. Kf4 {[%clk 0:01:41]} 1-0


[Site "https://www.chess.com"]

[Event "Titled Tuesday Blitz April 25 Early 2023"]
[White "KRUMMEL2008"]
[Black "Pultinevicius, Paulius"]
[BlackFideId "12809390"]
[WhiteElo "2639"]
[BlackElo "2529"]
[Result "1-0"]
[Round "07"]
[TimeControl "180+2"]
[Date "2023.04.25"]
[WhiteClock "0:00:06"]
[BlackClock "0:00:07"]

1. e4 {[%clk 0:03:00]}  c6 {[%clk 0:02:59]} 2. d4 {[%clk 0:03:00]}  d5 {[%clk 0:03:00]} 3. e5 {[%clk 0:03:01]}  Bf5 {[%clk 0:03:00]} 4. Nf3 {[%clk 0:03:01]}  e6 {[%clk 0:03:00]} 5. Be2 {[%clk 0:03:01]}  Ne7 {[%clk 0:02:56]} 6. c3 {[%clk 0:03:00]}  Nd7 {[%clk 0:02:56]} 7. O-O {[%clk 0:03:00]}  a5 {[%clk 0:02:56]} 8. Na3 {[%clk 0:02:56]}  h6 {[%clk 0:02:56]} 9. Nc2 {[%clk 0:02:56]}  Bh7 {[%clk 0:02:55]} 10. a4 {[%clk 0:02:53]}  Nf5 {[%clk 0:02:56]} 11. Bd3 {[%clk 0:02:27]}  Bg6 {[%clk 0:02:55]} 12. Nfe1 {[%clk 0:02:12]}  Be7 {[%clk 0:02:55]} 13. f4 {[%clk 0:02:09]}  O-O {[%clk 0:02:53]} 14. g4 {[%clk 0:02:02]}  Nh4 {[%clk 0:02:54]} 15. f5 {[%clk 0:02:01]}  Bh7 {[%clk 0:02:54]} 16. Ng2 {[%clk 0:01:33]}  Nxg2 {[%clk 0:02:51]} 17. Kxg2 {[%clk 0:01:34]}  Bg5 {[%clk 0:02:49]} 18. Qe1 {[%clk 0:01:24]}  Re8 {[%clk 0:02:42]} 19. Qg3 {[%clk 0:01:17]}  Bxc1 {[%clk 0:02:35]} 20. Raxc1 {[%clk 0:01:17]}  f6 {[%clk 0:02:36]} 21. Rce1 {[%clk 0:00:58]}  fxe5 {[%clk 0:02:31]} 22. dxe5 {[%clk 0:00:58]}  Nc5 {[%clk 0:02:32]} 23. Nd4 {[%clk 0:00:50]}  Qb6 {[%clk 0:02:05]} 24. Rf2 {[%clk 0:00:33]}  Rf8 {[%clk 0:02:00]} 25. Ref1 {[%clk 0:00:24]}  Rae8 {[%clk 0:01:56]} 26. Bc2 {[%clk 0:00:19]}  Kh8 {[%clk 0:01:33]} 27. f6 {[%clk 0:00:16]}  Bxc2 {[%clk 0:01:32]} 28. fxg7+ {[%clk 0:00:09]}  Kxg7 {[%clk 0:01:33]} 29. Rxf8 {[%clk 0:00:09]}  Rxf8 {[%clk 0:01:27]} 30. Rxf8 {[%clk 0:00:08]}  Be4+ {[%clk 0:01:28]} 31. Rf3 {[%clk 0:00:07]}  Qxb2+ {[%clk 0:01:29]} 32. Kh3 {[%clk 0:00:07]}  Kg8 {[%clk 0:00:46]} 33. Qf2 {[%clk 0:00:06]}  Qxf2 {[%clk 0:00:38]} 34. Rxf2 {[%clk 0:00:07]}  Nxa4 {[%clk 0:00:36]} 35. Nxe6 {[%clk 0:00:07]}  Nxc3 {[%clk 0:00:36]} 36. Rf8+ {[%clk 0:00:07]}  Kh7 {[%clk 0:00:36]} 37. Rf7+ {[%clk 0:00:07]}  Kg8 {[%clk 0:00:37]} 38. Rg7+ {[%clk 0:00:07]}  Kh8 {[%clk 0:00:37]} 39. Rxb7 {[%clk 0:00:08]}  a4 {[%clk 0:00:32]} 40. Kh4 {[%clk 0:00:06]}  Bg6 {[%clk 0:00:25]} 41. Rb8+ {[%clk 0:00:05]}  Kh7 {[%clk 0:00:25]} 42. Rb7+ {[%clk 0:00:06]}  Kh8 {[%clk 0:00:24]} 43. g5 {[%clk 0:00:06]}  a3 {[%clk 0:00:16]} 44. gxh6 {[%clk 0:00:06]}  a2 {[%clk 0:00:17]} 45. Ra7 {[%clk 0:00:06]}  Bf5 {[%clk 0:00:14]} 46. Ng5 {[%clk 0:00:06]}  Be6 {[%clk 0:00:07]} 47. Ra8+ {[%clk 0:00:05]}  Bg8 {[%clk 0:00:07]} 48. h7 {[%clk 0:00:06]} 1-0


[Site "https://www.chess.com"]

[Event "Titled Tuesday Blitz April 25 Early 2023"]
[White "Ezat, Mohamed"]
[Black "Beerdsen, Thomas"]
[WhiteFideId "10600906"]
[BlackFideId "1030108"]
[WhiteElo "2386"]
[BlackElo "2547"]
[Result "1-0"]
[Round "07"]
[TimeControl "180+2"]
[Date "2023.04.25"]
[WhiteClock "0:00:24"]
[BlackClock "0:01:20"]

1. d4 {[%clk 0:02:57]}  Nf6 {[%clk 0:02:58]} 2. c4 {[%clk 0:02:57]}  a6 {[%clk 0:02:59]} 3. Nc3 {[%clk 0:02:54]}  b5 {[%clk 0:02:59]} 4. a3 {[%clk 0:02:51]}  bxc4 {[%clk 0:02:59]} 5. e4 {[%clk 0:02:51]}  c6 {[%clk 0:02:55]} 6. e5 {[%clk 0:02:48]}  Nd5 {[%clk 0:02:54]} 7. Bxc4 {[%clk 0:02:48]}  e6 {[%clk 0:02:53]} 8. Ne4 {[%clk 0:02:45]}  a5 {[%clk 0:02:47]} 9. Nf3 {[%clk 0:02:41]}  Ba6 {[%clk 0:02:39]} 10. b3 {[%clk 0:02:29]}  a4 {[%clk 0:02:32]} 11. O-O {[%clk 0:02:06]}  axb3 {[%clk 0:02:31]} 12. Qxb3 {[%clk 0:02:06]}  h6 {[%clk 0:02:25]} 13. a4 {[%clk 0:01:57]}  Be7 {[%clk 0:02:18]} 14. Ba3 {[%clk 0:01:54]}  O-O {[%clk 0:02:18]} 15. Bd6 {[%clk 0:01:19]}  f5 {[%clk 0:02:17]} 16. Nc5 {[%clk 0:00:59]}  Bxc4 {[%clk 0:02:16]} 17. Qxc4 {[%clk 0:00:59]}  Bxd6 {[%clk 0:02:05]} 18. exd6 {[%clk 0:00:59]}  Nb6 {[%clk 0:02:03]} 19. Qb3 {[%clk 0:00:56]}  Nd5 {[%clk 0:01:54]} 20. Ne5 {[%clk 0:00:54]}  Kh7 {[%clk 0:01:50]} 21. Qg3 {[%clk 0:00:51]}  Rf6 {[%clk 0:01:39]} 22. Rfb1 {[%clk 0:00:38]}  Qe8 {[%clk 0:01:35]} 23. h4 {[%clk 0:00:35]}  Ra7 {[%clk 0:01:27]} 24. a5 {[%clk 0:00:34]}  Na6 {[%clk 0:01:27]} 25. Nxa6 {[%clk 0:00:31]}  Rxa6 {[%clk 0:01:27]} 26. Rb7 {[%clk 0:00:31]}  Rf7 {[%clk 0:01:20]} 27. Qg6+ {[%clk 0:00:29]}  Kg8 {[%clk 0:01:19]} 28. Nxf7 {[%clk 0:00:29]}  Nf4 {[%clk 0:01:20]} 29. Nxh6+ {[%clk 0:00:24]}  Kh8 {[%clk 0:01:20]} 30. Qxe8+ {[%clk 0:00:24]} 1-0


[Site "https://www.chess.com"]

[Event "Titled Tuesday Blitz April 25 Early 2023"]
[White "Martinez Ramirez, Lennis"]
[Black "Molina, Roberto Junio Brito"]
[WhiteFideId "3509079"]
[BlackFideId "2109450"]
[WhiteElo "2410"]
[BlackElo "2376"]
[Result "1-0"]
[Round "07"]
[TimeControl "180+2"]
[Date "2023.04.25"]
[WhiteClock "0:00:25"]
[BlackClock "0:00:01"]

1. c4 {[%clk 0:03:00]}  c6 {[%clk 0:02:59]} 2. Nf3 {[%clk 0:02:59]}  d5 {[%clk 0:02:56]} 3. g3 {[%clk 0:02:59]}  dxc4 {[%clk 0:02:56]} 4. Bg2 {[%clk 0:02:58]}  b5 {[%clk 0:02:56]} 5. O-O {[%clk 0:02:58]}  Bb7 {[%clk 0:02:56]} 6. b3 {[%clk 0:02:57]}  cxb3 {[%clk 0:02:56]} 7. axb3 {[%clk 0:02:57]}  e6 {[%clk 0:02:52]} 8. d4 {[%clk 0:02:47]}  Nf6 {[%clk 0:02:51]} 9. Ne5 {[%clk 0:02:47]}  Be7 {[%clk 0:02:44]} 10. Nc3 {[%clk 0:02:47]}  a6 {[%clk 0:02:38]} 11. Bg5 {[%clk 0:02:43]}  O-O {[%clk 0:02:35]} 12. e3 {[%clk 0:02:40]}  Nd5 {[%clk 0:02:01]} 13. Bxe7 {[%clk 0:02:31]}  Qxe7 {[%clk 0:02:02]} 14. Ne4 {[%clk 0:02:29]}  Nd7 {[%clk 0:01:52]} 15. Nxd7 {[%clk 0:02:28]}  Qxd7 {[%clk 0:01:53]} 16. Nc5 {[%clk 0:02:28]}  Qe7 {[%clk 0:01:53]} 17. Ra5 {[%clk 0:02:19]}  Rad8 {[%clk 0:01:47]} 18. Qa1 {[%clk 0:02:16]}  Rfe8 {[%clk 0:01:21]} 19. Rc1 {[%clk 0:02:15]}  h6 {[%clk 0:01:09]} 20. Nxa6 {[%clk 0:02:14]}  Bxa6 {[%clk 0:01:05]} 21. Rxa6 {[%clk 0:02:14]}  Nb4 {[%clk 0:01:05]} 22. Ra7 {[%clk 0:02:13]}  Qd6 {[%clk 0:00:58]} 23. Bxc6 {[%clk 0:00:30]}  Nxc6 {[%clk 0:00:53]} 24. Ra6 {[%clk 0:00:30]}  Rc8 {[%clk 0:00:40]} 25. Qc3 {[%clk 0:00:29]}  e5 {[%clk 0:00:03]} 26. Rxc6 {[%clk 0:00:28]}  Rxc6 {[%clk 0:00:03]} 27. Qxc6 {[%clk 0:00:29]}  Qb8 {[%clk 0:00:03]} 28. d5 {[%clk 0:00:29]}  Rd8 {[%clk 0:00:02]} 29. Rc5 {[%clk 0:00:27]}  b4 {[%clk 0:00:02]} 30. Rc4 {[%clk 0:00:27]}  g6 {[%clk 0:00:01]} 31. Qc5 {[%clk 0:00:26]}  Qb7 {[%clk 0:00:01]} 32. e4 {[%clk 0:00:25]} 1-0


[Site "https://www.chess.com"]

[Event "Titled Tuesday Blitz April 25 Early 2023"]
[White "Vakhlamov, Igor L."]
[Black "Juhasz, Agoston"]
[WhiteFideId "24126748"]
[BlackFideId "778346"]
[WhiteElo "2400"]
[BlackElo "2211"]
[Result "1-0"]
[Round "07"]
[TimeControl "180+2"]
[Date "2023.04.25"]
[WhiteClock "0:00:38"]
[BlackClock "0:00:04"]

1. e4 {[%clk 0:03:00]}  c5 {[%clk 0:02:56]} 2. Nf3 {[%clk 0:03:01]}  Nc6 {[%clk 0:02:55]} 3. Nc3 {[%clk 0:03:02]}  g6 {[%clk 0:02:53]} 4. d4 {[%clk 0:03:01]}  cxd4 {[%clk 0:02:54]} 5. Nxd4 {[%clk 0:03:00]}  Bg7 {[%clk 0:02:55]} 6. Nxc6 {[%clk 0:03:00]}  bxc6 {[%clk 0:02:55]} 7. Bc4 {[%clk 0:03:00]}  d6 {[%clk 0:02:51]} 8. O-O {[%clk 0:03:00]}  Nf6 {[%clk 0:02:51]} 9. e5 {[%clk 0:03:00]}  dxe5 {[%clk 0:02:52]} 10. Qxd8+ {[%clk 0:03:01]}  Kxd8 {[%clk 0:02:52]} 11. Re1 {[%clk 0:03:00]}  e6 {[%clk 0:02:47]} 12. Rxe5 {[%clk 0:03:00]}  Nd5 {[%clk 0:02:46]} 13. Re2 {[%clk 0:03:00]}  Kc7 {[%clk 0:02:41]} 14. Na4 {[%clk 0:02:53]}  a5 {[%clk 0:02:22]} 15. a3 {[%clk 0:02:31]}  Ba6 {[%clk 0:02:16]} 16. Bxa6 {[%clk 0:02:31]}  Rxa6 {[%clk 0:02:17]} 17. c4 {[%clk 0:02:31]}  Nb6 {[%clk 0:02:01]} 18. Bf4+ {[%clk 0:02:31]}  Kc8 {[%clk 0:02:00]} 19. Nc5 {[%clk 0:02:28]}  Ra7 {[%clk 0:02:00]} 20. Rc1 {[%clk 0:02:23]}  Rd8 {[%clk 0:01:53]} 21. g3 {[%clk 0:02:19]}  Nd7 {[%clk 0:01:45]} 22. Ne4 {[%clk 0:02:15]}  Ne5 {[%clk 0:01:44]} 23. Bxe5 {[%clk 0:02:03]}  Bxe5 {[%clk 0:01:45]} 24. Ng5 {[%clk 0:02:02]}  Bg7 {[%clk 0:01:31]} 25. Nxh7 {[%clk 0:01:50]}  a4 {[%clk 0:01:11]} 26. Ng5 {[%clk 0:01:41]}  Rd3 {[%clk 0:00:59]} 27. Rcc2 {[%clk 0:01:37]}  Rb7 {[%clk 0:00:54]} 28. Ne4 {[%clk 0:01:37]}  Bf8 {[%clk 0:00:45]} 29. Nc3 {[%clk 0:01:35]}  Ra7 {[%clk 0:00:40]} 30. h4 {[%clk 0:01:35]}  Bc5 {[%clk 0:00:37]} 31. Ne4 {[%clk 0:01:31]}  Bd4 {[%clk 0:00:32]} 32. Kg2 {[%clk 0:01:29]}  f5 {[%clk 0:00:30]} 33. Ng5 {[%clk 0:01:13]}  e5 {[%clk 0:00:30]} 34. Nf3 {[%clk 0:01:13]}  e4 {[%clk 0:00:29]} 35. Nxd4 {[%clk 0:01:10]}  Rxd4 {[%clk 0:00:30]} 36. Red2 {[%clk 0:01:06]}  c5 {[%clk 0:00:29]} 37. f3 {[%clk 0:00:55]}  Rad7 {[%clk 0:00:24]} 38. Re2 {[%clk 0:00:54]}  exf3+ {[%clk 0:00:18]} 39. Kxf3 {[%clk 0:00:55]}  Rg4 {[%clk 0:00:18]} 40. Rcd2 {[%clk 0:00:47]}  Rxd2 {[%clk 0:00:15]} 41. Rxd2 {[%clk 0:00:48]}  Rxc4 {[%clk 0:00:15]} 42. Rd6 {[%clk 0:00:48]}  Rg4 {[%clk 0:00:08]} 43. Rc6+ {[%clk 0:00:48]}  Kb7 {[%clk 0:00:08]} 44. Rxc5 {[%clk 0:00:49]}  Kb6 {[%clk 0:00:09]} 45. Rc3 {[%clk 0:00:38]}  Kb5 {[%clk 0:00:09]} 46. b4 {[%clk 0:00:37]}  axb3 {[%clk 0:00:06]} 47. Rxb3+ {[%clk 0:00:37]}  Kc5 {[%clk 0:00:06]} 48. Rb4 {[%clk 0:00:35]}  Rxb4 {[%clk 0:00:03]} 49. axb4+ {[%clk 0:00:36]}  Kxb4 {[%clk 0:00:04]} 50. Kf4 {[%clk 0:00:37]}  Kc5 {[%clk 0:00:04]} 51. Kg5 {[%clk 0:00:37]}  Kd5 {[%clk 0:00:04]} 52. Kxg6 {[%clk 0:00:38]}  Ke4 {[%clk 0:00:03]} 53. h5 {[%clk 0:00:38]}  Kf3 {[%clk 0:00:04]} 54. Kxf5 {[%clk 0:00:37]}  Kxg3 {[%clk 0:00:04]} 55. h6 {[%clk 0:00:38]} 1-0


[Site "https://www.chess.com"]

[Event "Titled Tuesday Blitz April 25 Early 2023"]
[White "Weishaeutel, Moritz"]
[Black "Rozen, Eytan"]
[WhiteFideId "12967300"]
[BlackFideId "2816750"]
[WhiteElo "2301"]
[BlackElo "2451"]
[Result "0-1"]
[Round "07"]
[TimeControl "180+2"]
[Date "2023.04.25"]
[WhiteClock "0:00:13"]
[BlackClock "0:00:11"]

1. e4 {[%clk 0:03:00]}  c5 {[%clk 0:02:58]} 2. b4 {[%clk 0:03:01]}  e5 {[%clk 0:02:56]} 3. Nf3 {[%clk 0:03:00]}  Nc6 {[%clk 0:02:51]} 4. b5 {[%clk 0:03:00]}  Nd4 {[%clk 0:02:52]} 5. c3 {[%clk 0:03:00]}  Nxf3+ {[%clk 0:02:50]} 6. Qxf3 {[%clk 0:03:01]}  Nf6 {[%clk 0:02:49]} 7. Bc4 {[%clk 0:03:01]}  Be7 {[%clk 0:02:42]} 8. d3 {[%clk 0:03:01]}  O-O {[%clk 0:02:41]} 9. O-O {[%clk 0:02:59]}  b6 {[%clk 0:02:36]} 10. Re1 {[%clk 0:02:51]}  d6 {[%clk 0:02:18]} 11. Bg5 {[%clk 0:02:49]}  Be6 {[%clk 0:02:05]} 12. Bxf6 {[%clk 0:02:41]}  Bxf6 {[%clk 0:02:04]} 13. Nd2 {[%clk 0:02:42]}  Bg5 {[%clk 0:01:58]} 14. Nf1 {[%clk 0:02:40]}  Qd7 {[%clk 0:01:54]} 15. a4 {[%clk 0:02:18]}  Rad8 {[%clk 0:01:39]} 16. Qh5 {[%clk 0:01:54]}  h6 {[%clk 0:01:23]} 17. Ne3 {[%clk 0:01:53]}  Bxe3 {[%clk 0:01:19]} 18. Rxe3 {[%clk 0:01:54]}  d5 {[%clk 0:01:11]} 19. exd5 {[%clk 0:01:44]}  Bxd5 {[%clk 0:01:11]} 20. Rg3 {[%clk 0:01:06]}  Bxc4 {[%clk 0:01:03]} 21. Qxh6 {[%clk 0:01:00]}  f6 {[%clk 0:00:47]} 22. h4 {[%clk 0:00:46]}  Bxd3 {[%clk 0:00:30]} 23. Rd1 {[%clk 0:00:45]}  c4 {[%clk 0:00:30]} 24. Re1 {[%clk 0:00:37]}  Bh7 {[%clk 0:00:24]} 25. Ree3 {[%clk 0:00:27]}  Kh8 {[%clk 0:00:23]} 26. Qh5 {[%clk 0:00:27]}  Qd1+ {[%clk 0:00:23]} 27. Qxd1 {[%clk 0:00:23]}  Rxd1+ {[%clk 0:00:24]} 28. Kh2 {[%clk 0:00:24]}  Rd3 {[%clk 0:00:25]} 29. Rg4 {[%clk 0:00:20]}  Rxe3 {[%clk 0:00:22]} 30. fxe3 {[%clk 0:00:20]}  e4 {[%clk 0:00:18]} 31. Rf4 {[%clk 0:00:18]}  Rd8 {[%clk 0:00:18]} 32. Rf2 {[%clk 0:00:19]}  Rd3 {[%clk 0:00:18]} 33. Kg3 {[%clk 0:00:17]}  Rxe3+ {[%clk 0:00:17]} 34. Kf4 {[%clk 0:00:18]}  Rxc3 {[%clk 0:00:17]} 35. Rd2 {[%clk 0:00:18]}  Rd3 {[%clk 0:00:17]} 36. Rc2 {[%clk 0:00:18]}  c3 {[%clk 0:00:17]} 37. h5 {[%clk 0:00:17]}  e3 {[%clk 0:00:17]} 38. Re2 {[%clk 0:00:14]}  Rd4+ {[%clk 0:00:16]} 39. Kxe3 {[%clk 0:00:14]}  Re4+ {[%clk 0:00:17]} 40. Kd3 {[%clk 0:00:14]}  c2 {[%clk 0:00:13]} 41. Rxc2 {[%clk 0:00:13]}  Rxa4+ {[%clk 0:00:11]} 42. Kc3 {[%clk 0:00:13]}  Bxc2 {[%clk 0:00:11]} 0-1


[Site "https://www.chess.com"]